Cogmind - Beta 15 @@@ ROGUE MODE // 2025.07.26 @ 00:01:06 Player: ilja Result: Destroyed by Y-45 Defender with Beam Rifle Performance ------------- Evolutions (2) 1000 Regions Visited (3) 600 Robots Destroyed (12) 60 Value Destroyed (225) 225 Prototype IDs (0) 0 Alien Tech Used (0) 0 Bonus (0) 0 TOTAL SCORE: 1885 Bonus ------- None Cogmind --------- Core Integrity 0/550 Matter 120/300 Energy 100/100 System Corruption 2% Temperature Cool (9) Movement Core (100) Ox1 Location -8/Materials Parts ------- > --- POWER (2) -------- (None) > --- PROPULSION (2) --- (None) > --- UTILITY (5) ------ Small Storage Unit Structural Scanner Signal Interpreter > --- WEAPON (2) ------- (None) > --- INVENTORY (8) ---- Heat Sink Seismic Detector Advanced Beam Rifle EM Pulse Cannon Assault Cannon Grenade Launcher Mining Laser Peak State ------------ > --- POWER ------------ Ion Engine Light Ion Engine > --- PROPULSION ------- Light Treads Light Treads > --- UTILITY ---------- Small Storage Unit Structural Scanner Signal Interpreter Heavy Armor Plating > --- WEAPON ----------- Light Assault Rifle Assault Cannon > --- INVENTORY -------- Heat Sink Seismic Detector EM Pulse Cannon Assault Cannon Grenade Launcher Grenade Launcher Mining Laser [Rating: 18] Favorites ----------- Power Ion Engine Engine Ion Engine Propulsion Light Treads Treads Light Treads Utility Small Storage Unit Device Seismic Detector Storage Small Storage Unit Processor Signal Interpreter Protection Heavy Armor Plating Weapon Light Assault Rifle Energy Gun Medium Laser Ballistic Gun Light Assault Rifle Ballistic Cannon Assault Cannon Special Weapon Mining Laser Build | -11 -10 -10 -8 ------- Run | Yrd Mat Sub Mat Slots Evolved 4 | . . . 4 Power 1 | . . . 1 Propulsion . | . . . . Utility 3 | . . . 3 Weapon . | . . . . Parts Attached 14 | 8 1 1 4 Power 2 | 1 . 1 . Engine 2 | 1 . 1 . Core . | . . . . Reactor . | . . . . Propulsion 2 | 2 . . . Treads 2 | 2 . . . Leg . | . . . . Wheel . | . . . . Hover . | . . . . Flight . | . . . . Utility 6 | 3 . . 3 Device 3 | 2 . . 1 Storage 1 | 1 . . . Processor 1 | . . . 1 Hackware . | . . . . Protection 1 | . . . 1 Artifact . | . . . . Weapon 4 | 2 1 . 1 Energy Gun 1 | 1 . . . Energy Cannon . | . . . . Ballistic Gun 1 | 1 . . . Ballistic Cannon 1 | . . . 1 Launcher . | . . . . Special Weapon 1 | . 1 . . Impact Weapon . | . . . . Slashing Weapon . | . . . . Piercing Weapon . | . . . . Special Melee Weapon . | . . . . Unidentified Prototypes . | . . . . Parts Lost 4 | . . . 4 Power 1 | . . . 1 Propulsion 2 | . . . 2 Utility 1 | . . . 1 Weapon . | . . . . Highest Loss Streak 3 | . . . 3 To Critical Strikes . | . . . . Average Backups 3 | . 4 7 6 Power . | . 1 1 . Propulsion . | . . . . Utility 1 | . 1 3 1 Weapon 1 | . 1 3 4 Tool/Special . | . . . . Unused Backups 6 | . . . 6 Power . | . . . . Propulsion . | . . . . Utility 1 | . . . 1 Weapon 5 | . . . 5 Tool/Special . | . . . . Average Slot Usage (%) 93 | . 100 100 74 Engine 13 | . 14 14 11 Treads 24 | . 28 28 14 Device 13 | . 14 14 10 Storage 12 | . 14 14 9 Processor 2 | . . . 8 Protection 1 | . . . 5 Energy Gun 9 | . 12 11 1 Ballistic Gun 11 | . 14 12 6 Ballistic Cannon 1 | . . . 5 Special Weapon 1 | . 1 4 . Peak Build Rating 18 | 7 7 7 18 Average Rating 7 | 5 7 7 13 On Entrance 5 | . 7 7 7 Naked Turns . | . . . . Heaviest Build 35 | 14 14 14 35 Greatest Support 40 | 40 40 40 40 Greatest Overweight (x) 1 | . . . 1 Average Overweight (x) . | . . . . Largest Inventory Capacity 8 | 8 8 8 8 Average Capacity 7 | 7 8 8 8 Most Carried 8 | 1 7 7 8 Average Carried 3 | . 4 7 6 Final Capacity 8 | 8 8 8 8 Final Carried 7 | 1 7 7 7 Class Distribution -------------------- 100% | Mutant Dominant Class ---------------- Mutant | -10/Materials Mutant | -10/Subcaves Mutant | -8/Materials Resources | -11 -10 -10 -8 ----------- Run | Yrd Mat Sub Mat Matter Collected 307 | 292 11 . 4 Remotely 46 | 46 . . . Salvage Created 337 | 139 137 . 61 Parts 30 | 11 13 . 6 Haulers Intercepted . | . . . . Recyclers Shooed 1 | . 1 . . Parts Field Recycled . | . . . . Retrieved Matter . | . . . . Parts Self-Destructed . | . . . . Prevented . | . . . . Kills | -11 -10 -10 -8 ------- Run | Yrd Mat Sub Mat Combat Hostiles Destroyed 7 | . 5 . 2 Guns 6 | . 5 . 1 Cannons 1 | . . . 1 Classes Destroyed 6 | 3 2 . 1 Worker 2 | 1 1 . . Tunneler 2 | 2 . . . Recycler 1 | 1 . . . Swarmer 3 | . 3 . . Grunt 3 | . 2 . 1 Sentry 1 | . . . 1 Best Kill Streak 3 | 1 3 . 1 Combat Bots Only 3 | . 3 . 1 Max Kills in Single Turn 1 | 1 1 . 1 Gunslinging . | . . . . Exploded . | . . . . Melee . | . . . . Uniques/NPCs Destroyed . | . . . . Combat | -11 -10 -10 -8 -------- Run | Yrd Mat Sub Mat Hostile Shots Fired 146 | . 30 1 115 Missed 45 | . 13 . 32 Hits 101 | . 17 1 83 Projectile 101 | . 17 1 83 Critical Strikes 4 | . 1 . 3 Damage Taken 1552 | . 223 25 1304 Core 600 | . 43 . 557 Absorbed by Shields . | . . . . Core Remaining (%) 91 | 100 . 82 . Volleys Fired 46 | 12 19 1 14 Largest 2 | 2 2 1 2 Hottest 100 | 70 100 100 57 Shots Fired 89 | 24 36 1 28 Gun 72 | 24 34 . 14 Cannon 14 | . . . 14 Launcher . | . . . . Special 3 | . 2 1 . Kinetic 57 | 12 17 . 28 Thermal 32 | 12 19 1 . Explosive . | . . . . Electromagnetic . | . . . . Robot Hit Streak 11 | 3 11 . 5 Robot Miss Streak 5 | 2 5 . 3 Penetration Max . | . . . . Secondary Targets 2 | . 2 . . Max Gunslinging Chain 1 | . 1 . . Shots Hit Robots 51 | 12 22 . 17 Core Hits 25 | 6 12 . 7 Critical Kills . | . . . . Critical Parts Destroyed . | . . . . Critical Strikes 1 | . 1 . . Burn 1 | . 1 . . Melee Attacks . | . . . . Impact . | . . . . Slashing . | . . . . Piercing . | . . . . Sneak Attacks . | . . . . Combat Hostiles . | . . . . Follow-up Attacks . | . . . . Damage Inflicted 597 | 117 242 . 238 Guns 427 | 115 242 . 70 Cannons 157 | . . . 157 Explosions . | . . . . Melee . | . . . . Ramming 13 | 2 . . 11 Kinetic 373 | 54 92 . 227 Thermal 211 | 61 150 . . Explosive . | . . . . Electromagnetic . | . . . . Impact . | . . . . Slashing . | . . . . Piercing . | . . . . Highest Corruption 2 | . . . 2 Average Corruption 2 | . . . 2 Corruption Purged . | . . . . Corruption Blocked . | . . . . Effects 1 | . . . 1 Message Errors 1 | . . . 1 Overload Shots . | . . . . Overflow Damage . | . . . . Projectiles . | . . . . Explosions . | . . . . Melee . | . . . . Knockbacks 1 | . . . 1 Impact . | . . . . Kinetic 1 | . . . 1 Secondary . | . . . . Self-Inflicted Damage 5 | . . . 5 Shots . | . . . . Rammed 4 | 1 1 . 2 Targets Rammed 4 | 1 1 . 2 Kicked . | . . . . Crushed . | . . . . Highest Temperature 163 | 80 163 . 160 Average Temperature 59 | 28 68 . 67 Received Heat Transfer 816 | . 78 . 738 Siege Activations . | . . . . Martial Activations . | . . . . Shielding Activations . | . . . . Robots Disrupted . | . . . . Combat Hostiles . | . . . . Robots Corrupted . | . . . . Combat Hostiles . | . . . . Parts Fried . | . . . . Impact Corruptions . | . . . . Robots Melted . | . . . . Combat Hostiles . | . . . . Parts Melted . | . . . . Heat Transferred 703 | 185 518 . . Parts Sabotaged . | . . . . Parts Stolen . | . . . . Parts Stripped . | . . . . Power Chain Reactions . | . . . . Alert | -11 -10 -10 -8 ------- Run | Yrd Mat Sub Mat Maximum Alert Level . | . . . . Low Security (%) 100 | 100 100 . 100 Level 1 . | . . . . Level 2 . | . . . . Level 3 . | . . . . Level 4 . | . . . . Level 5 . | . . . . High Security . | . . . . Max Security . | . . . . Peak Influence 62 | 5 62 . 45 Initial . | . . . . Average 6 | . 9 . 6 Influence Increases 248 | 20 129 . 99 Destroy 0b10 Robot/C 140 | . 100 . 40 Destroy 0b10 Robot/NC 25 | 20 5 . . Destroy Leader 30 | . 20 . 10 Successful Hack 4 | . 4 . . Destroy Structure 4 | . . . 4 Lose Combat Pursuer 45 | . . . 45 Influence Decreases 203 | 20 115 14 54 Entered New Map 7 | . . 7 . Time Decay 176 | 20 115 7 34 Lost Part 20 | . . . 20 Squads Dispatched 1 | . . . 1 Investigation . | . . . . Extermination . | . . . . Reinforcement 1 | . . . 1 Assault . | . . . . Garrison . | . . . . Intercept . | . . . . Searches Triggered . | . . . . Construction Impeded . | . . . . Haulers Reinforced . | . . . . Active Scanning Responses . | . . . . Cargo Convoy Interrupts . | . . . . Stealth | -11 -10 -10 -8 --------- Run | Yrd Mat Sub Mat Distress Signals 1 | . . . 1 Communications Jammed . | . . . . Distress Signals . | . . . . Times Spotted 17 | . 5 1 11 Peak Tracking Total 7 | . 3 1 7 Tactical Retreats 1 | . . . 1 Traps | -11 -10 -10 -8 ------- Run | Yrd Mat Sub Mat Traps Triggered 1 | . 1 . . Indirectly . | . . . . Trap Hack Attempts . | . . . . Triggered . | . . . . Disarmed . | . . . . Reprogrammed . | . . . . Reused . | . . . . Traps Extracted . | . . . . Installed . | . . . . Triggered . | . . . . Machines | -11 -10 -10 -8 ---------- Run | Yrd Mat Sub Mat Machines Disabled . | . . . . Max in Single Turn . | . . . . Machines Repaired . | . . . . Machines Dismantled . | . . . . Machines Sabotaged . | . . . . Overloaded Fab Kills . | . . . . Hacking | -11 -10 -10 -8 --------- Run | Yrd Mat Sub Mat Machines Accessed 2 | . 1 . 1 Terminals 1 | . 1 . . Fabricators . | . . . . Repair Stations . | . . . . Recycling Units . | . . . . Scanalyzers 1 | . . . 1 Garrison Access . | . . . . Total Hacks 4 | . 3 . 1 Successful 2 | . 2 . . Failed 2 | . 1 . 1 Catastrophic . | . . . . Database Lockouts . | . . . . Manual . | . . . . Terminals 3 | . 3 . . Fabricators . | . . . . Repair Stations . | . . . . Recycling Units . | . . . . Scanalyzers 1 | . . . 1 Garrison Access . | . . . . Terminal Hacks 2 | . 2 . . Record 2 | . 2 . . Fabricator Hacks . | . . . . Repair Station Hacks . | . . . . Recycling Unit Hacks . | . . . . Scanalyzer . | . . . . Garrison Access Hacks . | . . . . Unauthorized Hacks . | . . . . Terminals . | . . . . Fabricators . | . . . . Repair Stations . | . . . . Recycling Units . | . . . . Scanalyzers . | . . . . Garrison Access . | . . . . Data Cores Recovered . | . . . . Used . | . . . . Hacking Detections 1 | . . . 1 Full Trace Events . | . . . . Feedback Events . | . . . . Feedback Blocked . | . . . . Robot Schematics Acquired . | . . . . Robots Built . | . . . . Authchips . | . . . . Time . | . . . . Total Robot Build Rating . | . . . . Part Schematics Acquired . | . . . . Parts Built . | . . . . Authchips . | . . . . Time . | . . . . Total Part Build Rating . | . . . . Parts Repaired . | . . . . Time . | . . . . Parts Recycled . | . . . . Recycled Matter . | . . . . Retrieved Matter . | . . . . Retrieved Components . | . . . . Parts Scanalyzed . | . . . . Part Schematics Acquired . | . . . . Parts Damaged . | . . . . Bothacking | -11 -10 -10 -8 ------------ Run | Yrd Mat Sub Mat Used RIF Installer . | . . . . Robots Hacked . | . . . . Non-combat . | . . . . Combat . | . . . . Robot Hacks Applied . | . . . . Relay Couplers Released . | . . . . Fabnet Peak Effective % . | . . . . Robots Rewired . | . . . . Allies Hacked . | . . . . Hacks Repelled . | . . . . Allies | -11 -10 -10 -8 -------- Run | Yrd Mat Sub Mat Total Allies . | . . . . Largest Group . | . . . . Highest-Rated Group . | . . . . Highest-Rated Ally . | . . . . Total Orders . | . . . . Ally Attacks . | . . . . Total Damage . | . . . . Kills . | . . . . Allies Corrupted . | . . . . Allies Melted . | . . . . Intel | -11 -10 -10 -8 ------- Run | Yrd Mat Sub Mat Active Infowar (turns) 1536 | 324 751 163 298 Structural 298 | . . . 298 Seismic 1273 | 324 751 163 35 Robot Analysis Total . | . . . . Derelict Logs Recovered 1 | . . 1 . Drone Launches . | . . . . Drone Recoveries . | . . . . Exploration | -11 -10 -10 -8 ------------- Run | Yrd Mat Sub Mat Turns Passed 1715 | 503 751 163 298 Spaces Moved 1009 | 317 422 97 173 Core 108 | 47 . . 61 Treads 901 | 270 422 97 112 Legs . | . . . . Wheels . | . . . . Hover . | . . . . Flight . | . . . . Fastest Speed 50 | 50 160 160 100 Average Speed 151 | 143 160 160 138 Slowest Speed 160 | 160 160 160 160 Overloaded Moves . | . . . . Propulsion Burnouts . | . . . . Robots Hopped . | . . . . Potential Cave-ins . | . . . . Cave-ins Triggered . | . . . . Exploration Rate (%) 20 | 15 45 6 15 Regions Visited 3 Branch Regions 1 Pre-discovered Areas . | . . . . Known Exits Taken . | . . . . Unknown Exits Taken 3 | 1 1 1 . Scrap Searched . | . . . . Spaces Dug 2 | . 2 . . Terrain Destroyed 6 | . 2 . 4 Melee . | . . . . Projectile 6 | . 2 . 4 AOE . | . . . . Terrain Rammed . | . . . . Walls Destroyed . | . . . . Machines Disabled . | . . . . Actions | -11 -10 -10 -8 --------- Run | Yrd Mat Sub Mat Total 1107 | 339 460 100 208 Wait 11 | . 11 . . Move 1006 | 316 421 96 173 Hop . | . . . . Pick Up 10 | 1 5 . 4 Fast Attach 11 | 8 1 . 2 Attach 5 | . . . 5 Detach 3 | . 1 . 2 Swap 4 | . 1 3 . Drop 7 | 1 . . 6 Fire 46 | 12 19 1 14 Melee . | . . . . Ram 2 | . . . 2 Kick . | . . . . Crush 2 | 1 1 . . Escape Stasis . | . . . . Rewire . | . . . . Trap . | . . . . Miscellaneous . | . . . . Route ------- -11/Scrapyard -10/Materials (discovered 2 exits: [*Min] / [*Sub]) -10/Subcaves -8/Materials (discovered 1 exit: *Fac) History --------- Turn | Location | Event 7 | -11/Scrapyard | Discovered new exit (range 16) 504 | -11/Scrapyard | Entered Materials 505 | -10/Materials | Build established: Mutant 505 | -10/Materials | Met a group of wandering Federalists 817 | -10/Materials | Discovered new exit (range 14) 859 | -10/Materials | Discovered new exit (range 9) 1255 | -10/Materials | Entered Subcaves 1256 | -10/Subcaves | Continued accompanying wandering Federalists (5) 1281 | -10/Subcaves | Discovered new exit (range 13) 1289 | -10/Subcaves | Learned location of 1 exit from Materials 1365 | -10/Subcaves | Lost 5 allies 1418 | -10/Subcaves | Entered Materials 1418 | -8/Materials | Evolved 4 slots: Power x1, Utility x3 1419 | -8/Materials | Identified exit to Factory 1661 | -8/Materials | Core integrity fell below 50% 1683 | -8/Materials | Lost 3 parts (2n1u) 1683 | -8/Materials | Core integrity fell below 20% 1716 | -8/Materials | Destroyed by Y-45 Defender with Beam Rifle Last Messages --------------- support, which slows movement; see status page ('s') or the top of the parts list for the specific mass vs. support values. U-05 Engineer builds a Door. U-05 Engineer destroyed. K-01 Serf collects debris. Critical hit (Burn: +37). R-06 Scavenger collects Aluminum Leg. Critical hit (Burn: +37). K-01 Serf collects debris. R-06 Scavenger collects Imp. Heat Sink. Slammed into A-02 Transporter. Destabilizing: System corrupted (+2). K-01 Serf collects debris. Slammed into A-02 Transporter. K-01 Serf collects debris. R-06 Scavenger collects Structural Scanner. K-01 Serf collects debris. BTIJKE /11CA7XZBUXOM8GB,=,B3IK32 K-01 Serf collects debris. Map ----- +----------------------------------------------------+ | #??????????????????????? ????????? | | #??????????????????????? ???????????? | | #??????????????????????# #???????????? | | #??????????????????????## ##???????????? | | ############## ## ##???????????? | | ######################### ##???????????? | | ##???????????? | | ##???????????? | | #################/##+#### ##???????????? | | ############### #### ##???????????? | | # ???????????## #### ##???????????? | | # ??? "??????## + ##???????????? | | # ?"" "?? ##?## #### ##???????????? | | # """ """ ##?## ####g # ???????????? | | + ##?## #### # ???????????? | | # ""T"" ##?############ + ???????????? | | # ?""""?? ##?############ # ???????????? | | # ??? ????????????????## # ???????????? | | ##?????????????????????## # ???????????? | | #??????????????????????## ##???????????? | | #??????????????????????## ##???????????? | | #??????????????????????## ##???????????? | | #??????????????????????## ##???????????? | | ####??????????###???##### ###??????????? | | ####??????????## #### ###??????????? | | ##??????????## @ ##??????????? | | ==##??????????## Y < ##??????????? | | ==##??????????## ##??????????? | | ####??????????## w#########??????????? | | ####??????????### ## ??????????? | | ??????????????### ?????????????????????? | | ???????????????## ??????????????????????? | | ???????????????## ??????????????????????? | | ???????????????## ??????????????????????? | | ????????????????????????????????????????? | | ????????????????????????????????????????? | | ????????????????????????????????????????? | | ????????????????????????????????????????? | | ????????????????????????????????????????? | | ????????????????????????????????????????? | | ????????????????????????????????????????? | | ????????????????????????????????????????? | | ????????????????????????????????????????? | | ????????????????????????????????????????? | | ????????????????????????????????????????? | | ????????????????????????????????????????? | | ????????????????????????????????????????? | | ????????????????????????????????????????? | | ????????????????????????????????????????? | | ????????????????????????????????????????? | +----------------------------------------------------+ Best States ------------- Heat Dissipation 31 Energy Generation 15 Energy Capacity 275 Matter Stores 300 Matter Capacity 300 Sight Range 16 Terrain Scan Density 10 Armor Coverage 600 Evasion (%) 50 Recoil Reduction 2 Item Schematics ----------------- None Robot Schematics ------------------ None Fabricated ------------ Nothing Repaired ---------- Nothing Alien Tech Used ----------------- None Achievements -------------- None Challenges ------------ None Game ------ Seed SalvageControlFlamer Manual? 0 Play Time 00:26:04 Cumulative 1.7 hours Start 2025.07.25 @ 23:36:00 End 2025.07.26 @ 00:01:06 Sessions 1 Manual Loads 0 Difficulty Rogue Special Mode None Game No. 7 Rogue 7 Adventurer 0 Explorer 0 Win Type - Total 0 Types 0/0/0/0/0/0/0/0/0/0 Lore% 0 Gallery% 4 Achievement% 4 Wizard Run 0 Options --------- Layout 1 ASCII 0 Keyboard 0 Movement Arrows Keybinds 0 Fullscreen 1 Font 24/Smallcaps Map View 50x40 Zoom Use 0% Tactical HUD 0 Map Filters NONE Filters NONE Steam 1 RUN: e6851deb-0b62-4890-b857-6249ecb9d93e